bitfinex-derivatives/quotes_ETHF0:USTF0_20250210
["timestamp","ask_amount","ask_price","bid_price","bid_amount"]
[1739151635062,3.66370874,2609.6,2609.1,3.2078]
[1739151635257,3.2078,2609.4,2608.9,1.178]
[1739151635761,4.09351005,2609.3,2608.9,1.178]
[1739151636162,4.09351005,2609.3,2608.9,0.5953]
[1739151636570,4.68441005,2609.3,2608.7,3.8141]
[1739151637067,4.68441005,2609.3,2608.0,3.2078]
[1739151637068,3.2078,2608.8,2608.0,3.2078]
[1739151637258,3.2078,2608.8,2608.2,0.5631]
[1739151637459,3.2078,2608.8,2608.0,3.7782]
[1739151637460,4.14043363,2608.7,2608.0,3.7782]
[1739151637654,4.73133363,2608.7,2608.0,3.7782]
[1739151637963,4.73133363,2608.7,2607.8,0.5631]
[1739151637964,3.2078,2608.2,2607.8,0.5631]
[1739151638365,2.20633264,2608.5,2607.8,0.5631]
[1739151638366,3.2078,2608.5,2607.8,0.5631]
[1739151638662,0.5909,2608.7,2607.7,0.08127747]
[1739151638663,3.2078,2608.2,2607.7,0.08127747]
[1739151638864,3.2078,2608.2,2606.0,2.59033264]
[1739151638865,5.41413264,2607.8,2606.6,3.2078]
[1739151639064,3.2078,2607.1,2606.6,3.2078]
[1739151639466,5.41988252,2607.1,2606.6,3.2078]
[1739151639664,5.41988252,2607.1,2606.2,40.8]
[1739151639665,5.41413264,2606.8,2606.0,3.2078]
[1739151640161,4.12017868,2606.7,2605.5,2.20633264]
[1739151640364,3.2078,2606.3,2605.5,2.20633264]
[1739151640763,3.2078,2606.6,2605.9,3.2078]
[1739151640963,5.41988252,2607.1,2606.1,2.20633264]
[1739151641168,4.24924408,2606.8,2606.2,3.2078]
[1739151641365,0.00574988,2607.1,2606.4,2.20633264]
[1739151641562,0.00574988,2607.1,2606.5,3.2078]
[1739151642570,0.00574988,2607.1,2606.8,3.2078]
[1739151642768,5.0548,2608.0,2607.0,2.82837021]
[1739151643268,5.0548,2608.0,2607.5,3.2078]
[1739151643269,4.1908773,2607.9,2607.5,3.2078]
[1739151643471,3.2078,2608.3,2607.5,3.2078]
[1739151643670,3.2078,2608.3,2607.6,0.5573]
[1739151643859,3.2078,2608.3,2607.7,0.5864]
[1739151644061,3.2078,2608.9,2607.9,6.03617021]
[1739151644266,3.2078,2609.2,2608.2,3.2078]
[1739151644460,3.2078,2608.4,2607.7,4.4034]
[1739151644668,6.03617021,2608.4,2607.7,4.4034]
[1739151645173,0.00574988,2608.3,2607.8,0.00574988]
[1739151645368,3.2078,2608.1,2607.8,0.00574988]
[1739151648066,3.2078,2608.2,2607.8,0.00574988]
[1739151648267,0.00574988,2608.3,2607.8,0.00574988]
[1739151648268,3.2078,2607.9,2607.8,0.00574988]
[1739151650674,3.2078,2607.9,2607.2,0.5621]
[1739151650675,7.50644114,2607.9,2607.2,0.5621]
[1739151650872,3.2078,2607.6,2607.2,0.5621]
[1739151651977,3.2078,2608.0,2607.4,3.2078]
[1739151652471,4.34247924,2608.2,2607.4,3.2078]
[1739151652664,0.00574988,2608.3,2607.7,3.2078]
[1739151652873,0.00574988,2608.3,2607.8,0.6104]
[1739151653473,0.00574988,2608.3,2607.9,0.5659]
[1739151653674,0.00574988,2608.3,2608.0,1.868]
[1739151653877,0.00574988,2608.3,2608.1,3.2078]
[1739151654177,3.2078,2609.0,2608.1,3.2078]
[1739151654678,6.63287021,2609.3,2608.1,3.2078]
[1739151654878,3.2078,2609.3,2608.2,2.82837021]
[1739151655076,3.2078,2609.3,2608.4,3.2078]
[1739151655379,0.00574988,2609.0,2608.5,0.00574988]
[1739151655877,0.00574988,2609.0,2608.5,2.83412009]
[1739151656079,0.00574988,2609.0,2608.7,3.2078]
[1739151656478,3.2078,2609.7,2608.8,3.39967021]
[1739151657585,3.2078,2609.7,2608.7,3.2078]
[1739151657783,3.2078,2609.7,2605.5,11.91332804]
[1739151657975,2.82837021,2606.4,2605.5,11.91332804]
[1739151658182,2.82837021,2606.4,2605.6,40.8]
[1739151658478,3.2078,2606.4,2605.6,40.8]
[1739151658782,3.2078,2606.7,2605.8,3.2078]
[1739151658984,0.00574988,2606.3,2605.8,3.2078]
[1739151659676,3.2078,2606.7,2606.1,3.2078]
[1739151660078,3.2078,2606.4,2605.7,2.76034988]
[1739151660282,3.2078,2606.4,2605.7,0.57434988]
[1739151660780,0.00574988,2606.3,2605.7,0.57434988]
[1739151660977,3.2078,2605.9,2605.7,0.57434988]
[1739151662173,9.2078,2605.9,2604.0,3.14827799]
[1739151662380,3.2078,2603.9,2601.9,3.2078]
[1739151662682,3.2078,2602.7,2602.3,40.8]
[1739151663172,3.2078,2602.4,2602.3,40.8]
[1739151664884,3.21356247,2602.8,2602.3,46.8]
[1739151665078,3.21356247,2602.8,2602.3,41.4061]
[1739151665279,3.2078,2602.5,2602.3,41.4061]
[1739151665583,3.21356247,2602.8,2602.3,47.4061]
[1739151665779,3.2078,2603.4,2602.5,3.2078]
[1739151665988,3.2078,2603.7,2603.0,3.2078]
[1739151666286,3.2078,2604.2,2603.3,3.2078]
[1739151666883,0.00576247,2604.0,2603.5,0.00576247]
[1739151667981,0.00576247,2604.0,2603.6,3.2078]
[1739151668288,0.00576247,2604.0,2603.9,40.8]
[1739151671087,0.00576247,2604.0,2603.9,50.0078]
[1739151671287,3.2078,2604.6,2603.9,50.0078]
[1739151671485,3.2078,2604.6,2603.9,44.0078]
[1739151672483,3.14827799,2604.4,2603.9,40.8]
[1739151673191,3.2078,2604.3,2603.9,40.8]
[1739151673392,3.2078,2604.3,2603.6,3.7892]
[1739151673789,3.2078,2604.3,2603.7,40.8]
[1739151674082,3.14827799,2604.4,2604.0,0.00613083]
[1739151676290,3.2078,2604.3,2604.0,0.00613083]
[1739151676686,4.08690243,2604.2,2604.0,0.00613083]
[1739151677085,3.2078,2604.3,2604.0,0.00613083]
[1739151678988,4.3348038,2604.2,2604.0,0.00613083]
[1739151680290,4.7177038,2604.2,2604.0,0.00613083]
[1739151680488,4.3348038,2604.2,2604.0,0.00613083]
[1739151680692,3.2078,2604.3,2604.0,0.00613083]
[1739151681990,4.15830139,2604.2,2604.0,0.00613083]
[1739151682189,3.2078,2604.3,2604.0,0.00613083]
[1739151682896,0.00576247,2604.5,2604.0,0.00613083]
[1739151683389,0.00576247,2604.5,2604.1,3.2078]
[1739151684994,0.00576247,2604.5,2604.2,40.8]
[1739151686994,0.00576247,2604.5,2604.0,0.58093083]
[1739151687190,3.2078,2604.4,2604.0,0.00613083]
[1739151687489,3.2078,2604.1,2604.0,0.00613083]
[1739151687690,3.5907,2604.4,2604.0,0.00613083]
[1739151687890,3.2078,2604.4,2604.0,0.00613083]
[1739151688192,3.9757,2604.1,2604.0,0.00613083]
[1739151688405,3.5907,2604.1,2603.5,0.00576247]
[1739151688594,7.94215932,2604.1,2603.5,0.00576247]
[1739151688801,3.2078,2604.0,2603.5,0.00576247]
[1739151690701,3.2078,2603.6,2602.9,3.2078]
[1739151690900,3.2078,2603.0,2602.3,3.2078]
[1739151691095,3.2078,2603.4,2602.3,3.2078]
[1739151691290,3.2078,2603.4,2602.4,41.3591]
[1739151691899,3.2078,2603.1,2602.6,0.00576247]
[1739151692100,0.00576247,2603.2,2602.6,0.00576247]
[1739151693299,0.00576247,2603.2,2602.6,3.21356247]
[1739151693598,0.00576247,2603.2,2602.6,0.00576247]
[1739151694104,3.2078,2602.8,2602.6,0.00576247]
[1739151694301,10.49612582,2603.1,2602.6,0.00576247]
[1739151694498,3.2078,2603.0,2602.6,0.00576247]
[1739151695699,3.2078,2602.7,2602.6,0.00576247]
[1739151695910,3.2078,2603.0,2602.6,0.00576247]
[1739151696104,3.2078,2602.7,2602.6,0.00576247]
[1739151696904,6.35607799,2602.7,2602.6,0.00576247]
[1739151697197,18.88673833,2602.7,2600.7,0.30723731]
[1739151697399,3.2078,2600.9,2600.2,3.2078]
[1739151697604,3.2078,2601.1,2600.2,3.2078]
[1739151697993,2.521,2601.8,2599.6,3.2078]
[1739151697994,3.2078,2600.8,2599.6,3.2078]
[1739151698196,3.2078,2600.7,2599.8,3.2078]
[1739151698392,0.00576247,2600.5,2600.1,3.2078]
[1739151698604,0.00576247,2600.5,2599.9,0.00576247]
[1739151699306,4.44592199,2600.4,2599.9,0.00576247]
[1739151699702,0.00576247,2600.5,2600.0,3.2078]
[1739151700707,0.00576247,2600.5,2600.0,9.2078]
[1739151700907,3.2078,2601.4,2600.1,0.5992]
[1739151701204,3.2078,2601.4,2600.3,3.2078]
[1739151701400,3.2078,2601.4,2600.4,0.5604]
[1739151701608,4.00868555,2601.3,2600.6,3.2078]
[1739151701901,3.2078,2601.4,2600.6,3.2078]
[1739151702108,3.2078,2601.4,2595.5,2.96]
[1739151702109,0.384,2601.1,2596.2,18.68632804]
[1739151702312,3.2078,2595.2,2593.1,0.1552]
[1739151702601,38.44393,2600.8,2593.1,0.30105845]
[1739151702602,3.2078,2594.1,2593.1,0.30105845]
[1739151702801,3.2078,2593.2,2592.5,32.4910527]
[1739151703006,3.2078,2593.7,2592.8,11.31437289]
[1739151703203,0.07657564,2593.1,2592.7,11.31437289]
[1739151703412,0.07657564,2593.1,2592.6,0.00577401]
[1739151703413,0.00577401,2593.1,2592.6,0.00577401]
[1739151703709,0.00577401,2593.1,2593.0,14.52217289]
[1739151703898,0.56945483,2593.8,2593.0,52.11437289]
[1739151704207,3.2078,2594.2,2593.7,11.31437289]
[1739151704503,0.74463947,2594.1,2594.0,11.31437289]
[1739151704701,4.68365171,2594.1,2593.8,11.31437289]
[1739151704900,4.4426292,2594.1,2593.9,11.31437289]
[1739151705108,0.24102706,2594.0,2593.4,11.31437289]
[1739151705308,3.2078,2593.8,2593.1,0.388]
[1739151705499,3.2078,2593.2,2592.6,0.00577401]
[1739151705701,3.2078,2593.2,2592.7,40.8]
[1739151705903,0.25625319,2593.4,2593.1,4.89877289]
[1739151706105,0.25625319,2593.4,2592.7,40.8]
[1739151706300,0.25625319,2593.4,2593.3,4.89877289]
[1739151706607,3.77725483,2595.7,2593.8,3.2078]
[1739151706803,1.18555483,2596.0,2595.4,3.2078]
[1739151707000,0.41497661,2595.6,2595.5,4.89877289]
[1739151707307,3.673,2596.0,2595.5,3.2078]
[1739151707509,3.673,2596.0,2595.9,40.8]
[1739151707708,0.17400332,2596.5,2595.9,48.90657289]
[1739151707902,0.6046,2597.3,2596.4,4.89877289]
[1739151708103,3.76588489,2597.2,2597.0,3.2078]
[1739151708506,0.00578525,2597.4,2597.0,3.2078]
[1739151708699,3.14827799,2597.3,2597.0,3.2078]
[1739151708905,3.14827799,2597.3,2596.8,0.00578525]
[1739151708906,10.45701189,2597.3,2596.8,0.00578525]
[1739151709608,3.2078,2597.0,2596.8,0.00578525]
[1739151710106,4.00996975,2596.9,2596.8,0.00578525]
[1739151710508,4.00996975,2597.1,2596.8,0.00578525]
[1739151710713,0.00578525,2597.4,2596.8,0.00578525]
[1739151711010,4.0599001,2597.3,2597.2,3.2078]
[1739151711212,0.00578525,2597.4,2596.8,4.90455814]
[1739151711517,4.0599001,2597.3,2596.9,3.2078]
[1739151711808,4.0599001,2597.3,2596.8,0.00578525]
[1739151712012,4.0599001,2597.3,2597.2,3.2078]
[1739151712815,0.00578525,2597.4,2597.2,8.10657289]
[1739151713009,0.00578525,2597.4,2597.3,4.89877289]
[1739151713711,0.00578525,2597.4,2597.2,0.01604857]
[1739151713912,2.79816929,2598.3,2597.2,0.01604857]
[1739151714211,4.16737489,2598.2,2597.7,3.2078]
[1739151715110,4.16737489,2598.2,2596.9,0.388]
[1739151715111,3.2078,2597.8,2597.0,3.2078]
[1739151715324,0.24069987,2597.7,2596.9,0.388]
[1739151715610,4.24138354,2597.7,2596.9,0.388]
[1739151716012,0.24075856,2597.6,2596.9,0.388]
[1739151716217,0.24076441,2597.5,2596.9,0.388]
[1739151716414,3.2078,2597.4,2596.9,0.388]
[1739151716713,4.33034087,2597.3,2596.9,0.388]
[1739151716905,7.29735721,2597.3,2596.4,0.1552]
[1739151717112,0.24078451,2597.2,2596.4,0.1552]
[1739151717418,0.24078451,2597.1,2596.4,0.1552]
[1739151717616,3.2078,2597.0,2596.4,0.1552]
[1739151717814,7.42130123,2597.0,2596.4,0.1552]
[1739151718218,0.24080342,2596.9,2596.4,0.16097367]
[1739151718516,3.21357367,2597.0,2596.4,0.16097367]
[1739151718816,4.61666242,2596.9,2596.4,0.16097367]
[1739151719015,4.37586118,2596.9,2596.4,0.16097367]
[1739151719310,3.2078,2596.7,2596.0,3.2078]
[1739151719518,3.2078,2596.7,2596.0,34.80941804]
[1739151719710,3.2078,2596.7,2595.8,7.82963257]
[1739151719912,0.00577367,2597.0,2596.4,3.2078]
[1739151720216,3.2078,2597.1,2595.8,7.82963257]
[1739151720217,2.2847,2597.1,2596.7,3.2078]
[1739151720419,3.2078,2597.4,2596.7,3.2078]
[1739151720610,2.79816929,2597.9,2596.8,40.8]
[1739151720922,2.79816929,2597.9,2597.1,3.2078]
[1739151721420,3.2078,2597.7,2597.2,0.00577367]
[1739151721816,3.2078,2597.3,2597.2,0.00577367]
[1739151722315,3.2078,2597.3,2595.1,0.24321441]
[1739151722517,0.77069,2594.7,2592.2,3.2078]
[1739151722713,3.2078,2594.8,2592.2,3.2078]
[1739151722714,3.2078,2593.1,2592.2,3.2078]
[1739151722914,3.2078,2592.8,2591.6,3.2078]
[1739151723420,4.88196174,2593.2,2592.7,3.2078]
[1739151723615,0.00578559,2592.7,2592.1,0.00578559]
[1739151724117,4.11569432,2592.6,2592.5,3.2078]
[1739151724416,7.32349432,2592.6,2592.1,0.00578559]
[1739151724619,3.2078,2592.2,2592.1,0.00578559]
[1739151725017,3.2078,2592.2,2592.1,3.21358559]
[1739151725518,7.68212116,2592.2,2592.1,3.21358559]
[1739151725717,12.5640829,2592.2,2592.1,0.00578559]
[1739151726114,8.33099999,2592.2,2592.1,0.00578559]
[1739151726419,8.33099999,2592.2,2591.0,0.00846891]
[1739151726420,3.2078,2591.5,2591.0,0.00846891]
[1739151726620,8.08976174,2591.1,2591.0,0.00846891]
[1739151727117,7.58974809,2591.1,2591.0,0.00846891]
[1739151727318,18.23038001,2591.1,2591.0,0.00846891]
[1739151727525,18.47170853,2591.1,2591.0,0.00846891]
[1739151727725,7.58974679,2591.1,2591.0,3.21626891]
[1739151727926,0.25439158,2591.9,2591.0,0.00846891]
[1739151728224,3.2078,2591.9,2591.0,0.00846891]
[1739151728518,3.2078,2591.5,2591.0,0.00846891]
[1739151728818,7.47156442,2592.5,2591.4,3.2078]
[1739151729024,6.97156442,2592.5,2592.0,3.2078]
[1739151729225,0.00578559,2592.2,2592.0,3.2078]
[1739151729625,0.00578559,2592.2,2592.1,40.8]
[1739151730523,4.10096876,2592.2,2592.1,40.8]
[1739151730828,0.00578559,2592.2,2592.1,40.8]
[1739151732324,4.88196174,2593.1,2592.1,50.0078]
[1739151732325,0.25439158,2592.9,2592.1,50.0078]
[1739151732531,0.24114597,2592.8,2592.7,3.2078]
[1739151732719,0.25439158,2592.9,2592.7,3.2078]
[1739151732920,0.56131959,2593.3,2592.3,3.2078]
[1739151733221,0.56131959,2593.3,2592.1,40.8]
[1739151733222,4.30393704,2592.8,2592.4,3.2078]
[1739151733528,0.80243353,2593.2,2592.4,3.2078]
[1739151733727,0.00578559,2593.0,2592.4,3.21358559]
[1739151733925,0.24110361,2592.9,2592.4,3.21358559]
[1739151734229,0.00578559,2593.0,2592.4,3.21358559]
[1739151734623,0.24110596,2592.9,2592.4,3.21358559]
[1739151734823,0.00578559,2593.0,2592.7,3.2078]
[1739151735224,0.25439158,2593.6,2592.7,9.97907]
[1739151735528,0.48212061,2593.5,2593.1,3.2078]
[1739151735725,0.24105837,2593.4,2593.1,3.2078]
[1739151735928,0.24106224,2593.5,2593.1,3.2078]
[1739151736124,0.24105464,2593.4,2593.1,3.2078]
[1739151736329,0.56309082,2593.9,2593.2,3.2078]
[1739151736518,0.24103418,2593.8,2593.5,3.97882]
[1739151736722,0.25439158,2594.0,2593.7,3.97875]
[1739151736929,0.8174824,2594.5,2593.7,3.2078]
[1739151737226,0.24096987,2594.4,2593.9,3.2078]
[1739151737425,0.24096987,2594.3,2594.2,3.2078]
[1739151737623,0.24096561,2594.3,2594.2,3.2078]
[1739151737824,0.81797343,2594.8,2594.2,3.2078]
[1739151738023,0.24093477,2594.7,2594.5,3.97852]
[1739151738227,0.25439158,2594.8,2594.5,3.97852]
[1739151738520,0.00377241,2594.8,2594.5,3.2078]
[1739151739831,1.0459977,2594.7,2594.2,0.00578559]
[1739151740133,0.24092209,2594.6,2594.2,0.00578559]
[1739151740336,0.80504583,2594.6,2594.2,0.00578559]
[1739151740632,0.24092209,2594.5,2594.2,0.00578559]
[1739151740836,0.24095138,2594.4,2594.2,0.00578559]
[1739151741136,0.56789615,2594.8,2594.3,3.2078]
[1739151741326,0.24094539,2594.7,2594.3,3.9786]
[1739151741527,0.24093397,2594.6,2594.3,3.2078]
[1739151741727,0.24093397,2594.5,2594.3,3.2078]
[1739151741929,0.24094456,2594.7,2594.2,3.2078]
[1739151742134,0.24094683,2594.6,2594.2,3.2078]
[1739151742429,0.00377241,2594.8,2594.2,3.2078]
[1739151742637,0.80906772,2594.8,2594.2,3.2078]
[1739151742834,0.24092935,2594.7,2594.2,3.2078]
[1739151743030,0.24092935,2594.7,2594.3,0.77078]
[1739151743333,0.24092935,2594.7,2594.4,0.77075]
[1739151743533,0.24092935,2594.6,2594.3,0.77079]
[1739151743737,0.00377241,2594.8,2594.3,0.77079]
[1739151743932,0.24092953,2594.7,2594.2,3.98441559]
[1739151744133,0.24092953,2594.6,2594.2,0.00578559]
[1739151744337,0.56813837,2594.8,2594.2,0.00578559]
[1739151744338,0.24092953,2594.5,2594.2,0.00578559]
[1739151744533,0.24092953,2594.4,2594.2,3.21358559]
[1739151744724,0.56813837,2594.8,2594.2,3.21358559]
[1739151744929,0.24093215,2594.7,2594.6,0.77071]
[1739151745132,0.00377241,2594.8,2594.7,0.77068]
[1739151745738,0.00377241,2594.8,2594.5,3.2078]
[1739151746034,3.77447333,2595.2,2594.5,9.2078]
[1739151746334,0.56667333,2595.1,2594.8,3.2078]
[1739151746535,0.24088414,2595.0,2594.8,3.2078]
[1739151747433,0.24088414,2594.9,2594.8,3.2078]
[1739151748235,0.24088414,2594.9,2594.5,3.2078]
[1739151748423,0.56667333,2594.9,2594.5,3.2078]
[1739151748737,1.06194905,2595.0,2594.5,3.2078]
[1739151749029,0.49527572,2594.9,2594.5,3.2078]
[1739151749235,0.49527572,2594.9,2594.8,3.97845]
[1739151749427,0.00578559,2595.2,2595.1,0.77056]
[1739151749737,0.56667333,2595.6,2595.2,0.77053]
[1739151749936,0.56667333,2595.6,2595.1,3.2078]
[1739151750129,0.56667333,2595.6,2595.3,0.77049]
[1739151750328,0.56667333,2595.6,2595.2,40.8]
[1739151750629,0.56667333,2595.7,2595.3,3.2078]
[1739151750935,0.56667333,2595.6,2595.2,44.0078]
[1739151751130,0.56667333,2595.6,2595.2,44.78410559]
[1739151751331,0.56667333,2595.6,2595.2,44.01358559]
[1739151751526,0.56667333,2595.6,2595.2,44.78409559]
[1739151751728,0.56667333,2595.6,2595.5,3.2078]
[1739151752036,0.56667333,2595.8,2595.5,3.2078]
[1739151752432,0.56667333,2595.7,2595.5,3.2078]
[1739151752625,0.5685803,2595.6,2595.2,0.00578559]
[1739151752826,0.56858176,2595.5,2595.2,0.00578559]
[1739151753029,0.80944467,2595.4,2595.2,0.00578559]
[1739151753232,0.24086261,2595.3,2595.2,0.77631559]
[1739151753437,0.56858201,2595.7,2595.2,9.21358559]
[1739151753638,0.56858201,2595.9,2595.5,3.97823]
[1739151753841,0.56858201,2595.9,2595.5,3.2078]
[1739151754040,0.56858201,2595.9,2595.6,40.8]
[1739151754239,0.56858201,2596.0,2595.6,40.8]
[1739151754637,3.2078,2595.8,2595.2,0.00578559]
[1739151754936,0.56835506,2595.7,2595.2,0.00578559]
[1739151755134,0.56835506,2595.4,2595.2,0.00578559]
[1739151755446,0.82460474,2595.3,2595.2,0.00578559]
[1739151755942,0.56835506,2595.3,2595.2,0.00578559]
[1739151756133,0.56835506,2595.4,2595.2,0.00578559]
[1739151756642,0.56880805,2595.3,2595.2,0.00578559]
[1739151757041,3.2078,2595.5,2595.2,0.00578559]
[1739151757529,0.56994605,2595.5,2595.3,3.2078]
[1739151757937,0.25695148,2595.4,2595.3,3.2078]
[1739151758341,3.46475148,2595.4,2594.8,3.2078]
[1739151758642,0.56994605,2595.3,2594.8,0.77062]
[1739151758841,3.46475148,2595.4,2594.8,0.77062]
[1739151759043,3.46475148,2595.4,2594.6,3.508]
[1739151759237,0.25695148,2595.3,2594.8,0.77065]
[1739151759440,0.26273707,2595.3,2594.7,3.21358559]
[1739151759734,7.97499998,2595.8,2595.1,3.2078]
[1739151759944,7.40505393,2595.8,2595.4,3.2078]
[1739151760133,4.19725393,2595.8,2595.7,0.77038]
[1739151760533,4.19725393,2595.8,2595.7,6.77038]
[1739151760936,4.19725393,2595.8,2595.7,6.0]
[1739151761139,3.2078,2594.7,2592.2,3.2078]
[1739151761343,3.2078,2593.4,2592.2,3.2078]
[1739151761532,3.2078,2593.0,2592.4,4.98935617]
[1739151761732,3.2078,2593.1,2592.3,40.8]
[1739151761935,1.04846233,2594.5,2592.3,40.8]
[1739151761936,3.2078,2592.8,2592.3,40.8]
[1739151762343,3.2078,2592.5,2592.3,0.00578559]
[1739151762733,9.2078,2592.5,2592.3,0.00578559]
[1739151765341,4.04619186,2592.4,2591.0,0.00846891]
[1739151765540,3.2078,2591.4,2591.0,0.00846891]
[1739151766047,3.2078,2591.1,2591.0,0.00846891]
[1739151767044,0.00578559,2591.3,2591.0,0.00846891]
[1739151768041,0.00578559,2591.3,2591.0,9.21626891]
[1739151768241,3.2078,2592.0,2591.0,9.21626891]
[1739151768441,3.2078,2592.0,2591.3,3.2078]
[1739151768642,3.2078,2592.4,2591.6,3.2078]
[1739151769240,3.2078,2592.4,2591.4,3.654]
[1739151769441,0.00578559,2592.3,2591.4,3.654]
[1739151769748,0.00578559,2592.3,2592.0,40.8]
[1739151770443,4.29504208,2592.3,2592.0,40.8]
[1739151771751,4.29504208,2592.3,2592.2,3.2078]
[1739151771941,5.59633858,2592.7,2592.2,3.2078]
[1739151771942,4.47845858,2592.7,2592.2,3.2078]
[1739151772141,4.47845858,2592.7,2592.0,59.93247]
[1739151772351,4.47845858,2592.7,2592.0,59.161]
[1739151772846,7.68625858,2592.7,2592.0,59.161]
[1739151773054,7.68625858,2592.7,2592.1,0.00578559]
[1739151773539,4.47845858,2592.7,2592.1,0.00578559]
[1739151773949,7.68625858,2592.7,2592.1,0.00578559]
[1739151774144,3.2078,2592.7,2592.1,0.00578559]
[1739151774348,3.2078,2592.4,2592.1,0.00578559]
[1739151774548,3.17716329,2592.2,2592.1,0.00578559]
[1739151774748,3.17716329,2592.2,2591.0,0.00846891]
[1739151774948,3.2078,2591.5,2591.1,40.8]
[1739151776648,3.2078,2591.2,2591.1,40.8]
[1739151776959,3.2078,2591.2,2591.0,0.0142545]
[1739151777149,3.21358559,2591.6,2591.0,0.0142545]
[1739151777454,3.21358559,2591.6,2591.1,40.8]
[1739151777951,0.00578559,2591.6,2591.1,40.8]
[1739151779152,6.0,2591.6,2591.0,0.0142545]
[1739151779451,3.2078,2591.1,2591.0,0.0142545]
[1739151779658,9.20201441,2591.1,2591.0,0.0142545]
[1739151783058,9.17999703,2591.1,2590.1,3.2078]
[1739151783259,3.2078,2590.3,2589.8,3.2078]
[1739151783661,9.17999703,2590.3,2589.8,3.2078]
[1739151784266,3.2078,2590.3,2589.8,0.43888559]
[1739151784457,3.2078,2590.3,2586.3,3.2078]
[1739151784458,3.2078,2588.6,2586.3,3.2078]
[1739151784661,3.2078,2586.6,2586.1,3.2078]
[1739151784957,3.2078,2587.1,2586.5,3.2078]
[1739151785154,3.2078,2587.8,2586.5,3.2078]
[1739151785357,3.2078,2587.5,2586.4,44.767]
[1739151785557,3.21359721,2587.4,2586.9,0.00579721]
[1739151785760,0.00579721,2587.4,2586.9,0.00579721]
[1739151786159,3.2078,2587.2,2586.9,0.00579721]
[1739151786459,0.00579721,2587.4,2586.9,3.21359721]
[1739151787265,0.25729026,2588.9,2587.2,3.2078]
[1739151787560,3.2078,2589.2,2588.5,3.2078]
[1739151787957,3.2078,2589.5,2588.5,3.2078]
[1739151788158,3.2078,2589.5,2588.9,3.2078]
[1739151788358,6.99542323,2589.0,2588.9,3.2078]
[1739151788566,0.09542323,2589.0,2588.9,3.2078]
[1739151788861,3.2078,2589.9,2588.9,3.2078]
[1739151789057,3.2078,2590.4,2589.1,3.2078]
[1739151789550,3.2078,2590.4,2589.2,40.8]
[1739151789957,3.2078,2590.8,2590.0,3.2078]
[1739151790157,0.00579721,2590.1,2590.0,3.2078]
[1739151790456,3.2078,2591.4,2590.0,9.2078]
[1739151790656,3.2078,2591.4,2590.0,3.2078]
[1739151791265,3.2078,2590.8,2589.9,4.002]
[1739151791560,3.2078,2590.8,2588.9,3.17716329]
[1739151791561,3.2078,2586.4,2582.4,3.2078]
[1739151791764,0.77353,2585.2,2584.0,11.91754193]
[1739151792059,3.2078,2584.1,2584.0,0.85117334]
[1739151792263,9.2078,2584.1,2583.6,14.50311]
[1739151792565,3.2078,2583.7,2583.6,11.55898441]
[1739151792863,3.2078,2583.7,2583.6,2.77225129]
[1739151793058,3.2078,2583.7,2583.6,1.84535129]
[1739151793059,13.67343255,2583.7,2583.6,1.84535129]
[1739151793259,1.37324871,2583.4,2582.8,40.8]
[1739151793455,3.2078,2582.7,2581.2,0.1552]
[1739151793661,3.2078,2580.8,2579.5,23.25268526]
[1739151793967,3.2078,2580.0,2579.9,20.23351046]
[1739151794260,3.2078,2580.0,2579.5,23.25268526]
[1739151794261,3.4498301,2580.0,2579.5,21.16049977]
[1739151794454,6.38496329,2579.6,2579.2,40.8]
[1739151794659,3.2078,2579.6,2579.2,40.8]
[1739151794855,3.2078,2579.7,2579.5,18.61537214]
[1739151795060,0.00580855,2580.2,2579.2,40.8]
[1739151795061,0.00580855,2580.2,2579.6,21.82317214]
[1739151795264,0.00580855,2580.2,2580.1,18.61537214]
[1739151795454,0.25071449,2581.2,2580.1,18.61537214]
[1739151795455,0.25071449,2581.2,2580.9,15.40757214]
[1739151795655,3.2078,2581.4,2581.0,3.2078]
[1739151795857,3.2078,2579.6,2578.8,29.06585657]
[1739151796164,3.2078,2578.1,2577.0,31.89484223]
[1739151796366,3.14070952,2579.5,2577.0,7.14511758]
[1739151796367,7.9736295,2577.1,2577.0,7.14511758]
[1739151796666,7.9736295,2577.1,2575.3,3.2078]
[1739151796667,9.2976295,2577.1,2575.3,3.2078]
[1739151796965,3.2078,2576.1,2574.6,3.2078]
[1739151797157,3.2078,2576.1,2575.5,3.2078]
[1739151797360,3.2078,2577.3,2576.6,20.0522]
[1739151797570,3.2078,2577.4,2576.3,0.00582061]
[1739151797862,3.2078,2577.4,2575.8,3.98413]
[1739151797863,4.06994965,2577.0,2576.9,20.0522]
[1739151798058,4.06994965,2577.6,2576.9,23.26]
[1739151798262,3.2078,2578.0,2577.3,20.0522]
[1739151798469,4.39976067,2577.6,2577.4,20.0522]
[1739151798763,7.9736295,2579.3,2577.9,20.0522]
[1739151798967,4.7658295,2579.9,2579.2,3.2078]
[1739151799164,7.9736295,2581.3,2579.8,23.26]
[1739151799369,9.48691958,2582.2,2581.2,3.2078]
[1739151799558,9.48691958,2582.2,2577.8,1.1483]
[1739151799559,3.2078,2583.3,2582.1,3.2078]
[1739151799869,5.02339147,2583.9,2583.2,3.2078]
[1739151800065,3.2078,2583.8,2583.3,40.8]
[1739151800260,7.4712978,2583.8,2583.3,0.00580653]
[1739151800461,3.2078,2583.5,2581.8,3.2078]
[1739151800669,3.2078,2583.2,2582.1,3.2078]
[1739151801065,3.2078,2582.6,2581.3,3.2078]
[1739151801266,3.2078,2581.7,2581.3,3.2078]
[1739151801565,4.34769549,2581.6,2581.5,3.2078]
[1739151801971,0.00580653,2581.8,2581.5,3.2078]
[1739151802168,4.34769549,2581.7,2581.5,3.2078]
[1739151802367,0.00580653,2581.8,2581.5,3.2078]
[1739151802671,4.17733552,2581.7,2581.5,3.2078]
[1739151802867,9.62505189,2581.7,2581.5,3.2078]
[1739151803371,15.62505189,2581.7,2581.5,3.2078]
[1739151803567,15.62505189,2581.7,2581.2,0.00580653]
[1739151803568,19.60741189,2581.7,2581.2,0.00580653]
[1739151803769,3.2078,2581.4,2581.2,0.00580653]
[1739151804160,4.11625052,2581.3,2581.2,0.00580653]
[1739151804471,4.11625052,2581.3,2578.5,0.80439457]
[1739151804472,3.2078,2580.3,2577.8,3.2078]